[Event "7° Rencontres Internationales des Echecs Francophones"]
[Site "PARIS, France"]
[Date "2019.08.10"]
[Round "9.4"]
[White "Sochacki, Christophe"]
[Black "Hamdouchi, Hicham"]
[Result "1-0"]
[TimeControl "90'+30' + 30seconds/move"]
[WhiteElo "2443"]
[BlackElo "2514"]

1. b3 {[%clk 00:05:05]} {[%emt 00:00:30]} a5 {[%clk 00:05:03]} {[%emt
00:00:04]} 2. c4 {[%clk 00:05:07]} {[%emt 00:00:01]} a4 {[%clk 00:04:59]}
{[%emt 00:00:07]} 3. bxa4 {[%clk 00:05:10]} e5 {[%clk 00:04:56]} {[%emt
00:00:05]} 4. Nc3 {[%clk 00:05:01]} {[%emt 00:00:12]} Nf6 {[%clk 00:04:57]}
{[%emt 00:00:02]} 5. Nf3 {[%clk 00:04:57]} {[%emt 00:00:07]} Nc6 {[%clk
00:04:57]} {[%emt 00:00:03]} 6. d3 {[%clk 00:04:55]} {[%emt 00:00:05]} d5
{[%clk 00:04:36]} {[%emt 00:00:23]} 7. cxd5 {[%clk 00:04:52]} {[%emt 00:00:07]}
Nxd5 {[%clk 00:04:38]} 8. Bd2 {[%clk 00:04:49]} {[%emt 00:00:07]} Nb6 {[%emt
00:00:26]} 9. g3 {[%clk 00:04:43]} {[%emt 00:00:02]} Be7 {[%clk 00:04:00]}
{[%emt 00:00:23]} 10. Bg2 {[%clk 00:04:44]} {[%emt 00:00:03]} O-O {[%clk
00:04:01]} {[%emt 00:00:02]} 11. O-O {[%clk 00:04:44]} {[%emt 00:00:03]} Be6
{[%emt 00:00:05]} 12. Rb1 {[%clk 00:04:30]} {[%emt 00:00:15]} f6 {[%clk
00:03:52]} {[%emt 00:00:12]} 13. Be3 {[%clk 00:04:29]} {[%emt 00:00:04]} Nd4
{[%clk 00:03:39]} {[%emt 00:00:15]} 14. Bxd4 {[%clk 00:03:26]} {[%emt
00:01:06]} exd4 {[%clk 00:03:40]} {[%emt 00:00:03]} 15. Nb5 {[%clk 00:03:28]}
c5 {[%clk 00:03:24]} {[%emt 00:00:19]} 16. Nd2 {[%clk 00:03:28]} {[%emt
00:00:03]} Rxa4 {[%clk 00:02:56]} {[%emt 00:00:31]} 17. a3 {[%clk 00:03:03]}
{[%emt 00:00:28]} Ra5 {[%clk 00:02:44]} {[%emt 00:00:15]} 18. Bxb7 {[%clk
00:02:40]} {[%emt 00:00:27]} Nd5 {[%clk 00:01:17]} {[%emt 00:01:29]} 19. Nc4
{[%clk 00:01:53]} {[%emt 00:00:50]} Rxb5 {[%clk 00:01:19]} {[%emt 00:00:01]} 20.
Rxb5 {[%clk 00:01:55]} Nc3 {[%clk 00:01:21]} {[%emt 00:00:01]} 21. Qb3 {[%clk
00:01:58]} Nxe2+ {[%clk 00:01:11]} {[%emt 00:00:13]} 22. Kh1 {[%clk 00:01:47]}
{[%emt 00:00:13]} Nc3 {[%clk 00:01:08]} {[%emt 00:00:07]} 23. Rb6 {[%clk
00:01:43]} {[%emt 00:00:07]} Bf7 {[%clk 00:00:56]} {[%emt 00:00:15]} 24. Re1
{[%clk 00:01:37]} {[%emt 00:00:09]} Qd7 {[%clk 00:00:45]} {[%emt 00:00:14]} 25.
Kg1 {[%clk 00:01:29]} {[%emt 00:00:11]} Bd8 {[%clk 00:00:40]} {[%emt 00:00:09]}
26. Bc6 {[%clk 00:01:02]} {[%emt 00:00:30]} Qf5 {[%clk 00:00:40]} {[%emt
00:00:03]} 27. Be4 {[%clk 00:00:39]} {[%emt 00:00:27]} Nxe4 {[%clk 00:00:33]}
{[%emt 00:00:10]} 28. dxe4 {[%clk 00:00:41]} 1-0

[Event "7° Rencontres Internationales des Echecs Francophones"]
[Site "PARIS, France"]
[Date "2019.08.10"]
[Round "9.7"]
[White "Chabanon, Jean-Luc"]
[Black "Berend, Elvira"]
[Result "1/2-1/2"]
[TimeControl "90'+30' + 30seconds/move"]
[WhiteElo "2448"]
[BlackElo "2297"]

1. d4 {[%clk 00:05:05]} Nf6 {[%clk 00:05:04]} {[%emt 00:00:02]} 2. Nf3 {[%clk
00:05:00]} {[%emt 00:00:08]} g6 {[%clk 00:05:04]} {[%emt 00:00:04]} 3. c4
{[%clk 00:04:58]} {[%emt 00:00:04]} Bg7 {[%clk 00:05:03]} {[%emt 00:00:04]} 4.
g3 {[%clk 00:04:56]} {[%emt 00:00:07]} c6 {[%clk 00:04:45]} {[%emt 00:00:20]} 5.
Bg2 {[%clk 00:04:55]} {[%emt 00:00:03]} d5 {[%clk 00:04:46]} {[%emt 00:00:03]}
6. Qb3 {[%clk 00:04:44]} {[%emt 00:00:14]} O-O {[%clk 00:04:43]} {[%emt
00:00:05]} 7. O-O {[%clk 00:04:40]} {[%emt 00:00:07]} dxc4 {[%clk 00:04:42]}
{[%emt 00:00:05]} 8. Qxc4 {[%clk 00:04:42]} {[%emt 00:00:01]} Be6 {[%clk
00:04:39]} {[%emt 00:00:06]} 9. Qa4 {[%clk 00:04:35]} {[%emt 00:00:10]} Nbd7
{[%clk 00:04:35]} {[%emt 00:00:06]} 10. Rd1 {[%clk 00:04:01]} {[%emt 00:00:37]}
Nb6 {[%clk 00:04:34]} {[%emt 00:00:05]} 11. Qc2 {[%clk 00:04:01]} {[%emt
00:00:03]} Bf5 {[%clk 00:04:28]} {[%emt 00:00:09]} 12. Qb3 {[%clk 00:03:40]}
{[%emt 00:00:24]} Be6 {[%clk 00:04:26]} {[%emt 00:00:05]} 13. Qc2 {[%clk
00:03:02]} {[%emt 00:00:41]} Bf5 {[%clk 00:04:25]} {[%emt 00:00:05]} 14. Qd2
{[%clk 00:03:02]} {[%emt 00:00:03]} Qc8 {[%clk 00:03:55]} {[%emt 00:00:33]} 15.
Nc3 {[%clk 00:02:54]} {[%emt 00:00:10]} Rd8 {[%clk 00:03:56]} {[%emt 00:00:02]}
16. Qe1 {[%clk 00:02:52]} {[%emt 00:00:06]} Ne4 {[%clk 00:03:44]} {[%emt
00:00:15]} 17. Nh4 {[%clk 00:02:36]} {[%emt 00:00:18]} Nd6 {[%clk 00:03:41]}
{[%emt 00:00:06]} 18. Nxf5 {[%clk 00:02:35]} {[%emt 00:00:05]} Nxf5 {[%clk
00:03:43]} 19. e3 {[%clk 00:02:29]} {[%emt 00:00:08]} e5 {[%clk 00:03:44]}
{[%emt 00:00:03]} 20. d5 {[%clk 00:02:23]} {[%emt 00:00:09]} cxd5 {[%clk
00:03:30]} {[%emt 00:00:17]} 21. Nxd5 {[%clk 00:02:23]} {[%emt 00:00:03]} Nxd5
{[%clk 00:03:30]} {[%emt 00:00:02]} 22. Bxd5 {[%clk 00:02:22]} {[%emt
00:00:04]} Ne7 {[%clk 00:03:19]} {[%emt 00:00:14]} 23. Bb3 {[%clk 00:02:22]}
{[%emt 00:00:03]} e4 {[%clk 00:03:12]} {[%emt 00:00:10]} 24. Bd2 {[%clk
00:02:09]} {[%emt 00:00:16]} Nc6 {[%clk 00:03:01]} {[%emt 00:00:15]} 25. Bc3
{[%clk 00:01:55]} {[%emt 00:00:17]} Qf5 {[%clk 00:02:53]} {[%emt 00:00:11]} 26.
Bxg7 {[%clk 00:01:15]} {[%emt 00:00:42]} Kxg7 {[%clk 00:02:54]} {[%emt
00:00:02]} 27. Qc3+ {[%clk 00:01:03]} {[%emt 00:00:15]} Kg8 {[%clk 00:02:47]}
{[%emt 00:00:10]} 28. Rxd8+ {[%clk 00:00:55]} {[%emt 00:00:11]} Rxd8 {[%clk
00:02:49]} {[%emt 00:00:01]} 29. Rd1 {[%clk 00:00:50]} {[%emt 00:00:07]} Rxd1+
{[%clk 00:02:38]} {[%emt 00:00:15]} 30. Bxd1 {[%clk 00:00:52]} h5 {[%clk
00:02:32]} {[%emt 00:00:09]} 31. h4 {[%clk 00:00:51]} {[%emt 00:00:04]} Ne5
{[%clk 00:02:29]} {[%emt 00:00:06]} 32. Be2 {[%clk 00:00:45]} {[%emt 00:00:10]}
a6 {[%clk 00:01:51]} {[%emt 00:00:40]} 33. Qc7 {[%clk 00:00:36]} {[%emt
00:00:11]} b5 {[%clk 00:01:21]} {[%emt 00:00:34]} 34. Qd6 {[%clk 00:00:33]}
{[%emt 00:00:06]} Nd3 {[%clk 00:00:52]} {[%emt 00:00:32]} 35. Bxd3 {[%clk
00:00:09]} {[%emt 00:00:27]} exd3 {[%clk 00:00:55]} 36. Qd4 {[%clk 00:00:08]}
{[%emt 00:00:03]} Qe6 {[%clk 00:00:38]} {[%emt 00:00:20]} 37. b3 {[%clk
00:00:11]} Qf5 {[%clk 00:00:32]} {[%emt 00:00:09]} 38. e4 {[%clk 00:00:09]}
{[%emt 00:00:05]} Qf3 {[%clk 00:00:34]} 39. Kh2 {[%clk 00:00:06]} {[%emt
00:00:07]} Qe2 {[%clk 00:00:29]} {[%emt 00:00:08]} 40. Qd8+ {[%clk 00:00:08]}
Kg7 {[%clk 00:00:27]} {[%emt 00:00:05]} 41. Qd4+ {[%clk 00:00:10]} Kh7 {[%clk
00:00:29]} 42. Qf6 {[%clk 00:00:07]} {[%emt 00:00:05]} Kg8 {[%clk 00:00:29]}
{[%emt 00:00:04]} 43. Qd8+ {[%clk 00:00:09]} {[%emt 00:00:02]} Kg7 {[%clk
00:00:31]} {[%emt 00:00:01]} 44. Qd4+ {[%clk 00:00:11]} f6 {[%clk 00:00:28]}
{[%emt 00:00:06]} 45. Qd7+ {[%clk 00:00:13]} {[%emt 00:00:01]} Kh6 {[%clk
00:00:28]} {[%emt 00:00:03]} 46. Qd4 {[%clk 00:00:11]} {[%emt 00:00:05]} d2
{[%clk 00:00:19]} {[%emt 00:00:12]} 47. Qxf6 {[%clk 00:00:13]} Kh7 {[%clk
00:00:18]} {[%emt 00:00:04]} 48. Qf7+ {[%clk 00:00:14]} Kh8 {[%clk 00:00:21]}
49. Qf8+ {[%clk 00:00:15]} {[%emt 00:00:03]} Kh7 {[%clk 00:00:23]} 1/2-1/2



[ePGN "0.1;DGT LiveChess/2.2.4"]

[Event "7° Rencontres Internationales des Echecs Francophones"]
[Site "PARIS, France"]
[Date "2019.08.10"]
[Round "10.2"]
[White "Shchekachev, Andrei"]
[Black "Sochacki, Christophe"]
[Result "1-0"]
[TimeControl "90'+30' + 30seconds/move"]
[WhiteElo "2446"]
[BlackElo "2443"]

1. Nf3 {[%clk 00:05:04]} {[%emt 00:06:55]} Nf6 {[%clk 00:05:05]} {[%emt
00:00:04]} 2. c4 {[%clk 00:05:06]} c5 {[%clk 00:05:07]} 3. Nc3 {[%clk
00:05:07]} {[%emt 00:00:01]} d5 {[%clk 00:05:07]} {[%emt 00:00:04]} 4. cxd5
{[%clk 00:05:08]} {[%emt 00:00:02]} Nxd5 {[%clk 00:05:09]} {[%emt 00:00:01]} 5.
e3 {[%clk 00:05:00]} {[%emt 00:00:11]} Nc6 {[%clk 00:05:05]} {[%emt 00:00:07]}
6. Bb5 {[%clk 00:04:54]} {[%emt 00:00:08]} Nxc3 {[%clk 00:04:40]} {[%emt
00:00:29]} 7. bxc3 {[%clk 00:04:47]} {[%emt 00:00:09]} Bd7 {[%clk 00:04:40]}
{[%emt 00:00:02]} 8. Rb1 {[%clk 00:04:26]} {[%emt 00:00:24]} e6 {[%clk
00:04:41]} {[%emt 00:00:03]} 9. O-O {[%clk 00:04:22]} {[%emt 00:00:07]} a6
{[%clk 00:04:28]} {[%emt 00:00:17]} 10. Be2 {[%clk 00:04:15]} {[%emt 00:00:09]}
Qc7 {[%clk 00:04:14]} {[%emt 00:00:16]} 11. d4 {[%clk 00:04:13]} {[%emt
00:00:05]} Bd6 {[%clk 00:03:55]} {[%emt 00:00:23]} 12. e4 {[%clk 00:03:47]}
{[%emt 00:00:28]} O-O {[%clk 00:03:34]} {[%emt 00:00:25]} 13. e5 {[%clk
00:02:45]} {[%emt 00:01:05]} Be7 {[%clk 00:03:36]} 14. Ng5 {[%clk 00:02:48]} h6
{[%clk 00:03:14]} {[%emt 00:00:25]} 15. Ne4 {[%clk 00:02:48]} {[%emt 00:00:03]}
cxd4 {[%clk 00:03:15]} {[%emt 00:00:02]} 16. cxd4 {[%clk 00:02:50]} Rfd8 {[%clk
00:03:09]} {[%emt 00:00:10]} 17. Rb3 {[%clk 00:01:50]} {[%emt 00:01:02]} Be8
{[%clk 00:02:39]} {[%emt 00:00:34]} 18. Rd3 {[%clk 00:01:52]} Kf8 {[%clk
00:02:16]} {[%emt 00:00:26]} 19. a3 {[%clk 00:01:47]} {[%emt 00:00:10]} Qb6
{[%clk 00:02:16]} 20. Be3 {[%clk 00:01:45]} {[%emt 00:00:05]} Rd5 {[%clk
00:02:05]} {[%emt 00:00:14]} 21. Rb3 {[%clk 00:01:35]} {[%emt 00:00:13]} Qa7
{[%clk 00:02:03]} {[%emt 00:00:05]} 22. Bc4 {[%clk 00:01:33]} {[%emt 00:00:05]}
Rd7 {[%clk 00:01:54]} {[%emt 00:00:12]} 23. d5 {[%clk 00:01:32]} {[%emt
00:00:04]} Qb8 {[%clk 00:01:53]} {[%emt 00:00:04]} 24. d6 {[%clk 00:01:31]}
{[%emt 00:00:04]} Bd8 {[%clk 00:01:42]} {[%emt 00:00:15]} 25. Bf4 {[%clk
00:01:21]} {[%emt 00:00:13]} b5 {[%clk 00:01:43]} {[%emt 00:00:01]} 26. Qg4
{[%clk 00:01:13]} {[%emt 00:00:12]} Qa7 {[%clk 00:01:40]} {[%emt 00:00:04]} 27.
Rg3 {[%clk 00:01:12]} {[%emt 00:00:04]} Bg5 {[%clk 00:01:20]} {[%emt 00:00:23]}
28. Nxg5 {[%clk 00:01:09]} {[%emt 00:00:07]} hxg5 {[%clk 00:01:22]} {[%emt
00:00:02]} 29. Qxg5 {[%clk 00:01:06]} {[%emt 00:00:05]} f6 {[%clk 00:01:24]}
{[%emt 00:00:01]} 30. exf6 {[%clk 00:01:05]} {[%emt 00:00:04]} bxc4 {[%clk
00:01:26]} {[%emt 00:00:01]} 31. fxg7+ {[%clk 00:01:04]} {[%emt 00:00:04]} Rxg7
{[%clk 00:01:05]} {[%emt 00:00:24]} 32. Qh6 {[%clk 00:01:00]} {[%emt 00:00:08]}
Qf7 {[%clk 00:00:43]} {[%emt 00:00:24]} 33. d7 {[%clk 00:00:51]} {[%emt
00:00:12]} Bxd7 {[%clk 00:00:37]} {[%emt 00:00:09]} 34. Qh8+ {[%clk 00:00:49]}
{[%emt 00:00:05]} Qg8 {[%clk 00:00:34]} {[%emt 00:00:07]} 35. Bd6+ {[%clk
00:00:51]} Ne7 {[%clk 00:00:22]} {[%emt 00:00:15]} 36. Bxe7+ {[%clk 00:00:48]}
{[%emt 00:00:06]} Kf7 {[%clk 00:00:24]} 37. Qh4 {[%clk 00:00:30]} {[%emt
00:00:21]} Rg6 {[%clk 00:00:11]} {[%emt 00:00:16]} 38. Rf3+ {[%clk 00:00:29]}
{[%emt 00:00:04]} Ke8 {[%clk 00:00:13]} 39. Rf8+ {[%clk 00:00:29]} {[%emt
00:00:03]} 1-0

[Event "7° Rencontres Internationales des Echecs Francophones"]
[Site "PARIS, France"]
[Date "2019.08.10"]
[Round "10.8"]
[White "Huynh, Laurent"]
[Black "Rakotomaharo, Fy Antenaina"]
[Result "1/2-1/2"]
[TimeControl "90'+30' + 30seconds/move"]
[WhiteElo "2135"]
[BlackElo "2364"]

1. e4 {[%clk 00:05:04]} {[%emt 00:00:02]} c5 {[%clk 00:05:05]} {[%emt
00:00:03]} 2. Nf3 {[%clk 00:05:05]} {[%emt 00:00:02]} d6 {[%clk 00:05:07]} 3.
d4 {[%clk 00:05:07]} cxd4 4. Nxd4 {[%clk 00:05:09]} Nf6 {[%clk 00:05:11]} 5.
Nc3 {[%emt 00:00:02]} a6 6. h3 {[%clk 00:05:13]} {[%emt 00:00:01]} e5 {[%clk
00:05:15]} {[%emt 00:00:02]} 7. Nde2 {[%clk 00:05:15]} h5 {[%clk 00:05:17]} 8.
Bg5 {[%clk 00:05:17]} {[%emt 00:00:01]} Be6 {[%clk 00:05:13]} {[%emt 00:00:07]}
9. Bxf6 {[%clk 00:05:18]} {[%emt 00:00:01]} Qxf6 {[%clk 00:05:14]} {[%emt
00:00:01]} 10. Nd5 {[%clk 00:05:20]} {[%emt 00:00:01]} Qd8 {[%clk 00:05:16]} 11.
Nec3 {[%clk 00:05:21]} {[%emt 00:00:03]} Nd7 {[%clk 00:05:18]} 12. Bc4 {[%clk
00:05:23]} {[%emt 00:00:02]} Rc8 {[%clk 00:05:10]} {[%emt 00:00:11]} 13. Bb3
{[%clk 00:05:24]} {[%emt 00:00:02]} g6 {[%clk 00:05:07]} {[%emt 00:00:06]} 14.
O-O {[%clk 00:05:12]} {[%emt 00:00:15]} Bh6 {[%clk 00:05:08]} {[%emt 00:00:01]}
15. Qf3 {[%clk 00:04:48]} {[%emt 00:00:28]} O-O {[%clk 00:05:00]} {[%emt
00:00:12]} 16. Ne3 {[%clk 00:04:28]} {[%emt 00:00:22]} b5 {[%clk 00:04:46]}
{[%emt 00:00:17]} 17. Rad1 {[%clk 00:04:17]} {[%emt 00:00:14]} b4 {[%clk
00:04:39]} {[%emt 00:00:10]} 18. Ncd5 {[%clk 00:04:13]} {[%emt 00:00:06]} a5
{[%clk 00:04:37]} {[%emt 00:00:06]} 19. Rfe1 {[%clk 00:03:13]} {[%emt
00:01:03]} Kg7 {[%clk 00:04:39]} {[%emt 00:00:01]} 20. Ra1 {[%clk 00:02:53]}
{[%emt 00:00:24]} Nc5 {[%clk 00:04:33]} {[%emt 00:00:08]} 21. a3 {[%clk
00:02:40]} {[%emt 00:00:17]} a4 {[%clk 00:04:25]} {[%emt 00:00:11]} 22. axb4
{[%clk 00:02:35]} {[%emt 00:00:08]} Nxb3 {[%clk 00:04:26]} {[%emt 00:00:02]} 23.
cxb3 {[%clk 00:02:37]} axb3 {[%clk 00:04:28]} 24. Qd1 {[%clk 00:02:20]} {[%emt
00:00:19]} f5 {[%clk 00:04:18]} {[%emt 00:00:13]} 25. Ra7+ {[%clk 00:02:21]}
{[%emt 00:00:02]} Rf7 {[%clk 00:04:20]} 26. Rxf7+ {[%clk 00:02:22]} {[%emt
00:00:02]} Bxf7 {[%clk 00:03:58]} {[%emt 00:00:25]} 27. exf5 {[%clk 00:02:20]}
{[%emt 00:00:06]} Qg5 {[%clk 00:03:35]} {[%emt 00:00:27]} 28. Qf3 {[%clk
00:02:16]} {[%emt 00:00:06]} Re8 {[%clk 00:02:48]} {[%emt 00:00:57]} 29. Qe4
{[%clk 00:01:53]} {[%emt 00:00:19]} Kf8 {[%clk 00:02:42]} {[%emt 00:00:09]} 30.
h4 {[%clk 00:01:50]} {[%emt 00:00:07]} Bxd5 {[%clk 00:02:28]} {[%emt 00:00:16]}
31. Qxd5 {[%clk 00:01:47]} {[%emt 00:00:05]} Qf6 {[%clk 00:02:30]} {[%emt
00:00:01]} 32. fxg6 {[%clk 00:01:43]} {[%emt 00:00:07]} Qxg6 {[%clk 00:02:32]}
33. b5 {[%clk 00:01:39]} {[%emt 00:00:07]} Rb8 {[%clk 00:02:05]} {[%emt
00:00:30]} 34. Nc4 {[%clk 00:01:34]} {[%emt 00:00:09]} Bf4 {[%clk 00:01:26]}
{[%emt 00:00:41]} 35. b6 {[%clk 00:01:19]} {[%emt 00:00:19]} Kg7 {[%clk
00:01:20]} {[%emt 00:00:08]} 36. Rd1 {[%clk 00:01:15]} {[%emt 00:00:07]} e4
{[%clk 00:01:16]} {[%emt 00:00:08]} 37. Re1 {[%clk 00:01:03]} {[%emt 00:00:15]}
e3 {[%clk 00:01:01]} {[%emt 00:00:17]} 38. fxe3 {[%clk 00:00:46]} {[%emt
00:00:20]} Qg3 {[%clk 00:00:47]} {[%emt 00:00:17]} 39. Qd4+ {[%clk 00:00:32]}
{[%emt 00:00:16]} Be5 {[%clk 00:00:40]} {[%emt 00:00:11]} 40. Nxe5 {[%clk
00:00:26]} {[%emt 00:00:09]} Qxe1+ {[%clk 00:00:15]} {[%emt 00:00:28]} 41. Kh2
{[%clk 00:00:29]} dxe5 {[%clk 00:00:16]} {[%emt 00:00:01]} 42. Qxe5+ {[%clk
00:00:30]} {[%emt 00:00:01]} Kg6 {[%clk 00:00:13]} {[%emt 00:00:07]} 43. Qd6+
{[%clk 00:00:28]} {[%emt 00:00:06]} Kg7 {[%clk 00:00:13]} {[%emt 00:00:02]} 44.
Qc7+ {[%clk 00:00:29]} {[%emt 00:00:02]} Kg6 {[%clk 00:00:15]} {[%emt
00:00:01]} 45. Qd6+ {[%clk 00:00:30]} {[%emt 00:00:01]} 1/2-1/2

[Event "7° Rencontres Internationales des Echecs Francophones"]
[Site "PARIS, France"]
[Date "2019.08.10"]
[Round "10.5"]
[White "Ider, Borya"]
[Black "Aloma Vidal, Robert"]
[Result "1-0"]
[TimeControl "90'+30' + 30seconds/move"]
[WhiteElo "2492"]
[BlackElo "2417"]

1. Nf3 {[%clk 00:05:04]} {[%emt 00:00:02]} d5 {[%clk 00:05:05]} {[%emt
00:00:04]} 2. e3 {[%clk 00:05:06]} c5 {[%clk 00:05:06]} 3. b3 {[%clk 00:05:07]}
Nc6 {[%clk 00:05:04]} {[%emt 00:00:06]} 4. Bb2 {[%clk 00:05:09]} Nf6 {[%clk
00:04:59]} {[%emt 00:00:08]} 5. Bb5 {[%clk 00:05:07]} {[%emt 00:00:04]} g6
{[%clk 00:04:52]} {[%emt 00:00:09]} 6. Bxf6 {[%clk 00:04:46]} {[%emt 00:00:24]}
exf6 {[%clk 00:04:54]} {[%emt 00:00:01]} 7. O-O {[%clk 00:04:47]} {[%emt
00:00:02]} a6 {[%clk 00:04:49]} {[%emt 00:00:09]} 8. Be2 {[%clk 00:04:39]}
{[%emt 00:00:11]} d4 {[%clk 00:04:44]} {[%emt 00:00:09]} 9. e4 {[%clk
00:03:28]} {[%emt 00:01:13]} Bd6 {[%clk 00:04:41]} {[%emt 00:00:06]} 10. a4
{[%clk 00:03:26]} {[%emt 00:00:05]} f5 {[%clk 00:04:36]} {[%emt 00:00:09]} 11.
d3 {[%clk 00:03:21]} {[%emt 00:00:07]} O-O {[%clk 00:04:17]} {[%emt 00:00:23]}
12. Nbd2 {[%clk 00:03:10]} {[%emt 00:00:13]} Re8 {[%clk 00:04:19]} 13. h3
{[%clk 00:03:05]} {[%emt 00:00:08]} Bc7 {[%clk 00:04:17]} {[%emt 00:00:06]} 14.
Re1 {[%clk 00:03:05]} {[%emt 00:00:02]} b6 {[%clk 00:02:51]} {[%emt 00:01:30]}
15. Bf1 {[%clk 00:02:55]} {[%emt 00:00:12]} Nb4 {[%clk 00:02:48]} {[%emt
00:00:06]} 16. Re2 {[%clk 00:02:12]} {[%emt 00:00:46]} Bd7 {[%clk 00:02:18]}
{[%emt 00:00:33]} 17. Qc1 {[%clk 00:01:43]} {[%emt 00:00:32]} f4 {[%clk
00:02:02]} {[%emt 00:00:19]} 18. e5 {[%clk 00:01:08]} {[%emt 00:00:38]} Nd5
{[%clk 00:01:59]} {[%emt 00:00:06]} 19. Nc4 {[%clk 00:00:43]} {[%emt 00:00:29]}
b5 {[%clk 00:01:51]} {[%emt 00:00:11]} 20. Ncd2 {[%clk 00:00:34]} {[%emt
00:00:11]} Nc3 {[%clk 00:01:48]} {[%emt 00:00:07]} 21. Re1 {[%clk 00:00:35]}
{[%emt 00:00:02]} Bc6 {[%clk 00:01:46]} {[%emt 00:00:05]} 22. Ne4 {[%clk
00:00:28]} {[%emt 00:00:09]} Nxe4 {[%clk 00:01:36]} {[%emt 00:00:13]} 23. dxe4
{[%clk 00:00:30]} {[%emt 00:00:01]} bxa4 {[%clk 00:01:35]} {[%emt 00:00:04]} 24.
Qxf4 {[%clk 00:00:29]} {[%emt 00:00:04]} axb3 {[%clk 00:01:32]} {[%emt
00:00:06]} 25. Bc4 {[%clk 00:00:31]} Qe7 {[%clk 00:01:33]} {[%emt 00:00:02]} 26.
cxb3 {[%clk 00:00:30]} {[%emt 00:00:04]} Kg7 {[%clk 00:01:30]} {[%emt
00:00:06]} 27. h4 {[%clk 00:00:24]} {[%emt 00:00:10]} h6 {[%clk 00:01:16]}
{[%emt 00:00:16]} 28. Bd5 {[%clk 00:00:23]} {[%emt 00:00:04]} Qd7 {[%clk
00:01:08]} {[%emt 00:00:10]} 29. Qf6+ {[%emt 00:00:08]} Kh7 {[%clk 00:01:03]}
{[%emt 00:00:01]} 30. Bxc6 {[%clk 00:00:26]} {[%emt 00:00:02]} 1-0